bitfinex-derivatives/quotes_BNBF0:USTF0_20250603
["timestamp","ask_amount","ask_price","bid_price","bid_amount"]
[1748927740373,0.92667341,666.9,666.62,0.300021]
[1748927740572,0.92667033,666.89,666.62,0.300021]
[1748927740778,0.92668116,666.88,666.62,0.300021]
[1748927740974,1.024,666.91,666.62,0.300021]
[1748927741779,1.301,666.9,666.62,0.300021]
[1748927742275,0.92659835,666.89,666.62,0.300021]
[1748927742478,1.301,666.9,666.62,0.300021]
[1748927742875,0.92653661,666.89,666.62,0.300021]
[1748927743280,1.301,666.9,666.62,0.300021]
[1748927744882,0.92652172,666.89,666.62,0.300021]
[1748927745087,1.301,666.9,666.62,0.300021]
[1748927747384,0.92618716,666.89,666.62,0.300021]
[1748927747587,1.301,666.9,666.62,0.300021]
[1748927748588,0.92618924,666.89,666.62,0.300021]
[1748927748983,0.92676111,666.88,666.62,0.300021]
[1748927749187,1.301,666.9,666.62,0.300021]
[1748927749489,0.92675927,666.89,666.62,0.300021]
[1748927749689,1.301,666.9,666.62,0.300021]
[1748927750089,0.92676366,666.89,666.62,0.300021]
[1748927750285,1.301,666.9,666.62,0.300021]
[1748927750492,0.92687544,666.89,666.62,0.300021]
[1748927750788,0.92687544,666.88,666.62,0.300021]
[1748927751088,1.301,666.9,666.62,0.300021]
[1748927751898,0.92704936,666.89,666.62,0.300021]
[1748927752096,1.301,666.9,666.62,0.300021]
[1748927753798,0.92728495,666.89,666.62,0.300021]
[1748927753995,2.002,666.92,666.62,0.300021]
[1748927754600,0.92736892,666.91,666.62,0.300021]
[1748927754803,2.934,666.92,666.62,0.300021]
[1748927756499,1.18,666.91,666.62,0.300021]
[1748927757101,2.10751698,666.91,666.62,0.300021]
[1748927757302,1.18,666.91,666.62,0.300021]
[1748927762711,0.92757094,666.9,666.62,0.300021]
[1748927762913,1.18,666.91,666.62,0.300021]
[1748927764106,0.9276291,666.9,666.62,0.300021]
[1748927764412,0.92764517,666.89,666.62,0.300021]
[1748927764607,1.18,666.91,666.62,0.300021]
[1748927765514,0.92765711,666.9,666.62,0.300021]
[1748927765714,1.18,666.91,666.62,0.300021]
[1748927766709,0.92753153,666.9,666.62,0.300021]
[1748927767011,0.92757452,666.89,666.62,0.300021]
[1748927767217,0.92757996,666.88,666.62,0.300021]
[1748927767516,1.18,666.91,666.62,0.300021]
[1748927768112,0.92758874,666.9,666.62,0.300021]
[1748927768312,0.92758874,666.89,666.62,0.300021]
[1748927768617,0.92758738,666.88,666.62,0.300021]
[1748927768813,1.18,666.91,666.62,0.300021]
[1748927769013,0.92758738,666.9,666.62,0.300021]
[1748927769215,1.18,666.91,666.62,0.300021]
[1748927769410,0.92758738,666.9,666.62,0.300021]
[1748927769611,0.92758608,666.89,666.62,0.300021]
[1748927769916,1.18,666.91,666.62,0.300021]
[1748927770910,0.92761005,666.9,666.62,0.300021]
[1748927771113,0.92760868,666.89,666.62,0.300021]
[1748927771310,1.18,666.91,666.62,0.300021]
[1748927771515,2.934,666.92,666.62,0.300021]
[1748927775021,1.333,666.91,666.62,0.300021]
[1748927794126,2.934,666.92,666.62,0.300021]
[1748927796329,0.92691212,666.91,666.62,0.300021]
[1748927796526,2.934,666.92,666.62,0.300021]
[1748927796834,1.49393868,666.79,665.8,1.11855251]
[1748927797035,1.49393868,666.86,665.98,0.26090477]
[1748927797330,1.253,666.91,666.0,0.3003003]
[1748927797533,0.46116679,666.9,666.14,1.11855251]
[1748927797729,1.253,666.91,666.15,0.30023268]
[1748927797931,1.38848971,666.9,666.15,1.41878519]
[1748927798131,1.253,666.91,666.16,1.1188052]
[1748927798330,1.253,666.91,666.18,1.1188052]
[1748927798528,1.253,666.91,666.19,0.30021465]
[1748927799137,0.46113451,666.9,666.19,0.30021465]
[1748927799434,0.9272869,666.89,666.19,0.30021465]
[1748927799638,1.253,666.91,666.19,0.30021465]
[1748927799839,2.529,666.88,666.19,0.30021465]
[1748927800041,0.46113553,666.87,666.2,1.1188052]
[1748927800239,3.374,666.88,666.21,0.30020564]
[1748927800542,2.337,666.86,666.21,0.30020564]
[1748927800740,0.92728457,666.85,666.21,0.30020564]
[1748927800939,0.92728457,666.84,666.21,0.30020564]
[1748927801236,0.92641096,666.83,666.21,0.30020564]
[1748927801441,2.071,666.85,666.21,0.30020564]
[1748927802835,0.92643731,666.84,666.21,0.30020564]
[1748927803040,2.071,666.85,666.21,0.30020564]
[1748927803242,0.92644012,666.84,666.21,0.30020564]
[1748927803437,2.071,666.85,666.21,0.30020564]
[1748927805941,2.071,666.85,666.22,1.11693949]
[1748927806143,2.071,666.85,666.28,1.11693949]
[1748927806338,2.071,666.85,666.29,0.30016959]
[1748927808141,2.071,666.85,666.3,1.11693949]
[1748927808445,2.071,666.85,666.31,0.30016058]
[1748927809948,2.071,666.85,666.35,1.11681827]
[1748927810147,2.071,666.85,666.36,0.30013806]
[1748927812047,0.92608969,666.84,666.36,0.30013806]
[1748927812345,2.071,666.85,666.36,0.30013806]
[1748927812746,0.92608969,666.84,666.36,0.30013806]
[1748927812948,0.973,666.85,666.36,0.30013806]
[1748927813349,0.92608969,666.84,666.36,0.30013806]
[1748927813550,0.92608969,666.83,666.36,0.30013806]
[1748927813746,0.92608969,666.82,666.36,0.30013806]
[1748927813947,0.973,666.85,666.36,0.30013806]
[1748927814652,0.92611103,666.84,666.36,0.30013806]
[1748927814852,0.92611083,666.83,666.36,0.30013806]
[1748927815052,2.337,666.86,666.36,0.30013806]
[1748927816147,1.225,666.85,666.36,0.30013806]
[1748927816548,0.92611064,666.84,666.36,0.30013806]
[1748927816853,1.225,666.85,666.36,0.30013806]
[1748927817049,0.92611064,666.84,666.36,0.30013806]
[1748927817256,0.92611064,666.83,666.36,0.30013806]
[1748927817455,1.225,666.85,666.36,0.30013806]
[1748927817649,0.92668584,666.84,666.36,0.30013806]
[1748927817854,1.225,666.85,666.36,0.30013806]
[1748927821251,0.92668584,666.84,666.36,0.30013806]
[1748927821451,1.225,666.85,666.36,0.30013806]
[1748927821756,0.92668554,666.84,666.36,0.30013806]
[1748927821953,1.225,666.85,666.36,0.30013806]
[1748927822150,0.92668554,666.83,666.36,0.30013806]
[1748927822351,1.225,666.85,666.36,0.30013806]
[1748927822352,0.92663116,666.82,666.36,0.30013806]
[1748927822556,1.225,666.85,666.36,0.30013806]
[1748927823754,0.92661769,666.84,666.36,0.30013806]
[1748927823957,1.225,666.85,666.36,0.30013806]
[1748927824655,0.92662263,666.84,666.36,0.30013806]
[1748927824857,1.225,666.85,666.36,0.30013806]
[1748927825460,0.92670513,666.84,666.36,0.30013806]
[1748927825658,1.225,666.85,666.36,0.30013806]
[1748927827253,0.9267049,666.84,666.36,0.30013806]
[1748927827560,1.225,666.85,666.36,0.30013806]
[1748927829061,0.92670687,666.84,666.36,0.30013806]
[1748927829259,1.225,666.85,666.36,0.30013806]
[1748927831162,0.92679631,666.84,666.36,0.30013806]
[1748927831356,1.225,666.85,666.36,0.30013806]
[1748927831758,0.92680052,666.84,666.36,0.30013806]
[1748927831958,1.225,666.85,666.36,0.30013806]
[1748927832555,0.9268023,666.84,666.36,0.30013806]
[1748927832760,0.92685425,666.83,666.36,0.30013806]
[1748927832958,0.92684995,666.82,666.36,0.30013806]
[1748927833160,0.92685005,666.81,666.36,0.30013806]
[1748927833360,1.336,666.88,666.36,0.30013806]
[1748927834363,0.9268614,666.87,666.36,0.30013806]
[1748927834564,1.336,666.88,666.36,0.30013806]
[1748927834863,0.9268614,666.87,666.36,0.30013806]
[1748927835056,0.848,666.87,666.36,0.30013806]
[1748927836064,1.713,666.86,666.36,0.30013806]
[1748927836265,2.63986215,666.86,666.36,0.30013806]
[1748927838065,0.92677746,666.85,666.36,0.30013806]
[1748927838260,2.63986215,666.86,666.36,0.30013806]
[1748927839257,0.92677746,666.85,666.36,0.30013806]
[1748927839458,2.63986215,666.86,666.36,0.30013806]
[1748927840064,0.92686407,666.85,666.36,0.30013806]
[1748927840261,2.63986215,666.86,666.36,0.30013806]
[1748927841063,0.92686346,666.85,666.36,0.30013806]
[1748927841264,0.92686209,666.84,666.36,0.30013806]
[1748927841468,0.92686209,666.83,666.36,0.30013806]
[1748927841664,0.92686209,666.82,666.36,0.30013806]
[1748927841860,2.63986215,666.86,666.36,0.30013806]
[1748927842268,0.92686361,666.85,666.36,0.30013806]
[1748927842568,2.63986215,666.86,666.36,0.30013806]
[1748927842966,0.92686161,666.85,666.36,0.30013806]
[1748927843164,2.63986215,666.86,666.36,0.30013806]
[1748927845064,0.92686012,666.85,666.36,0.30013806]
[1748927845269,0.92686149,666.84,666.36,0.30013806]
[1748927845463,0.92686149,666.83,666.36,0.30013806]
[1748927845764,0.92686149,666.82,666.36,0.30013806]
[1748927845970,2.63986215,666.86,666.36,0.30013806]
[1748927847166,0.92686172,666.85,666.36,0.30013806]
[1748927847364,2.63986215,666.86,666.36,0.30013806]
[1748927848467,0.92686058,666.85,666.36,0.30013806]
[1748927848667,2.63986215,666.86,666.36,0.30013806]
[1748927849668,0.92686194,666.85,666.36,0.30013806]
[1748927849870,2.63986215,666.86,666.36,0.30013806]
[1748927850974,0.92671154,666.85,666.36,0.30013806]
[1748927851173,1.76586215,666.86,666.36,0.30013806]
[1748927852571,0.92671291,666.85,666.36,0.30013806]
[1748927852882,1.76586215,666.86,666.36,0.30013806]
[1748927853074,0.92671291,666.85,666.36,0.30013806]
[1748927853275,1.76586215,666.86,666.36,0.30013806]
[1748927853570,0.92673335,666.85,666.36,0.30013806]
[1748927853770,0.92673335,666.84,666.36,0.30013806]
[1748927853971,0.92673472,666.83,666.36,0.30013806]
[1748927854169,1.76586215,666.86,666.36,0.30013806]
[1748927854375,1.112,666.82,666.36,0.30013806]
[1748927857174,1.286,666.81,666.36,0.30013806]
[1748927857579,0.92673609,666.8,666.36,0.30013806]
[1748927857778,1.02,666.8,666.36,0.30013806]
[1748927859280,0.92669073,666.79,666.36,0.30013806]
[1748927859478,1.02,666.8,666.36,0.30013806]
[1748927859679,0.92669073,666.79,666.36,0.30013806]
[1748927859879,1.02,666.8,666.36,0.30013806]
[1748927860278,0.92664952,666.79,666.36,0.30013806]
[1748927860477,1.02,666.8,666.36,0.30013806]
[1748927860679,0.92664952,666.79,666.36,0.30013806]
[1748927860884,1.02,666.8,666.36,0.30013806]
[1748927861178,1.108,666.78,666.36,0.30013806]
[1748927861584,0.92664952,666.77,666.36,0.30013806]
[1748927861785,0.92664952,666.76,666.36,0.30013806]
[1748927861985,1.108,666.78,666.36,0.30013806]
[1748927862486,0.92664815,666.77,666.36,0.30013806]
[1748927862682,1.108,666.78,666.36,0.30013806]
[1748927862988,0.92664815,666.77,666.36,0.30013806]
[1748927863183,0.92664815,666.76,666.36,0.30013806]
[1748927863382,1.108,666.78,666.36,0.30013806]
[1748927863782,0.92664877,666.77,666.36,0.30013806]
[1748927863982,0.92664877,666.76,666.36,0.30013806]
[1748927864288,1.108,666.78,666.36,0.30013806]
[1748927865385,0.92664892,666.77,666.36,0.30013806]
[1748927865591,1.108,666.78,666.36,0.30013806]
[1748927866993,0.92665029,666.77,666.36,0.30013806]
[1748927867293,1.108,666.78,666.36,0.30013806]
[1748927867690,0.92664862,666.77,666.36,0.30013806]
[1748927867991,1.108,666.78,666.36,0.30013806]
[1748927868393,0.9265625,666.77,666.36,0.30013806]
[1748927868593,1.108,666.78,666.36,0.30013806]
[1748927868991,0.9265625,666.77,666.36,0.30013806]
[1748927869191,1.108,666.78,666.36,0.30013806]
[1748927869593,0.9265625,666.77,666.36,0.30013806]
[1748927869894,0.9265625,666.76,666.36,0.30013806]
[1748927870194,0.92656387,666.75,666.36,0.30013806]
[1748927870392,1.108,666.78,666.36,0.30013806]
[1748927870593,0.9265625,666.77,666.36,0.30013806]
[1748927870793,1.108,666.78,666.36,0.30013806]
[1748927870995,0.92656506,666.77,666.36,0.30013806]
[1748927871294,1.108,666.78,666.36,0.30013806]
[1748927872090,1.02,666.8,666.36,0.30013806]
[1748927872991,0.92656682,666.79,666.36,0.30013806]
[1748927873194,1.02,666.8,666.36,0.30013806]
[1748927873590,0.92656501,666.79,666.36,0.30013806]
[1748927873797,1.02,666.8,666.36,0.30013806]
[1748927874397,1.287,666.79,666.36,0.30013806]
[1748927875701,0.92672865,666.78,666.36,0.30013806]
[1748927875890,0.92672964,666.77,666.36,0.30013806]
[1748927876093,0.92672983,666.76,666.36,0.30013806]
[1748927876398,1.287,666.79,666.36,0.30013806]
[1748927876897,0.926748,666.78,666.36,0.30013806]
[1748927877094,1.287,666.79,666.36,0.30013806]
[1748927877601,0.92674663,666.78,666.36,0.30013806]
[1748927877799,1.287,666.79,666.36,0.30013806]
[1748927878193,0.926748,666.78,666.36,0.30013806]
[1748927878395,0.92672668,666.77,666.36,0.30013806]
[1748927878597,0.92672683,666.76,666.36,0.30013806]
[1748927878796,1.287,666.79,666.36,0.30013806]
[1748927879394,1.84832891,666.78,666.36,0.30013806]
[1748927879597,0.46080104,666.77,666.36,0.30013806]
[1748927879797,0.46080031,666.76,666.36,0.30013806]
[1748927879995,1.38752787,666.78,666.36,0.30013806]
[1748927880195,0.46080031,666.77,666.36,0.30013806]
[1748927880394,0.92672547,666.76,666.36,0.30013806]
[1748927880594,1.38752787,666.78,666.36,0.30013806]
[1748927881900,2.88146655,666.78,666.36,0.30013806]
[1748927882096,1.38752787,666.78,666.36,0.30013806]
[1748927882293,0.92672554,666.77,666.36,0.30013806]
[1748927882600,1.38752787,666.78,666.36,0.30013806]
[1748927882796,0.46080035,666.77,666.36,0.30013806]
[1748927882997,1.38752787,666.78,666.36,0.30013806]
[1748927883197,0.46080047,666.77,666.36,0.30013806]
[1748927883395,1.38752787,666.78,666.36,0.30013806]
[1748927883597,1.38752624,666.77,666.36,0.30013806]
[1748927883796,0.46080047,666.76,666.36,0.30013806]
[1748927884096,1.38752787,666.78,666.36,0.30013806]
[1748927884502,0.92672713,666.77,666.36,0.30013806]
[1748927884701,1.38752833,666.76,666.36,0.30013806]
[1748927884901,0.92672713,666.75,666.36,0.30013806]
[1748927885201,1.38752787,666.78,666.36,0.30013806]
[1748927885601,1.38752624,666.77,666.36,0.30013806]
[1748927885796,0.46080047,666.76,666.36,0.30013806]
[1748927886001,1.38752787,666.78,666.36,0.30013806]
[1748927886399,0.92672713,666.77,666.36,0.30013806]
[1748927886604,0.92672713,666.76,666.36,0.30013806]
[1748927886809,1.38752787,666.78,666.36,0.30013806]
[1748927887603,0.45961314,666.77,666.36,0.30013806]
[1748927887804,1.38752787,666.78,666.36,0.30013806]
[1748927888010,0.92671689,666.77,666.36,0.30013806]
[1748927888207,1.38752787,666.78,666.36,0.30013806]
[1748927888605,0.45961387,666.77,666.36,0.30013806]
[1748927888903,1.38752787,666.78,666.36,0.30013806]
[1748927889309,0.45961346,666.77,666.36,0.30013806]
[1748927889511,1.38752787,666.78,666.36,0.30013806]
[1748927889713,0.45961387,666.77,666.36,0.30013806]
[1748927890112,1.38752787,666.78,666.36,0.30013806]
[1748927891208,0.92656456,666.77,666.36,0.30013806]
[1748927891412,0.92656526,666.76,666.36,0.30013806]
[1748927891608,1.38752787,666.78,666.36,0.30013806]
[1748927891806,0.92656526,666.77,666.36,0.30013806]
[1748927892008,0.92656526,666.76,666.36,0.30013806]
[1748927892313,1.38752787,666.78,666.36,0.30013806]
[1748927892508,1.075,666.75,666.36,0.30013806]
[1748927894013,0.92654559,666.74,666.36,0.30013806]
[1748927894214,1.075,666.75,666.36,0.30013806]
[1748927894508,0.92654591,666.74,666.36,0.30013806]
[1748927894715,0.92654591,666.73,666.36,0.30013806]
[1748927894914,1.075,666.75,666.36,0.30013806]
[1748927895116,0.853,666.72,666.36,0.30013806]
[1748927895717,0.92654591,666.71,666.36,0.30013806]
[1748927895909,0.853,666.72,666.36,0.30013806]
[1748927896118,0.9266787,666.71,666.36,0.30013806]
[1748927896318,0.853,666.72,666.36,0.30013806]
[1748927897416,0.92661462,666.71,666.36,0.30013806]
[1748927897617,0.853,666.72,666.36,0.30013806]
[1748927898418,0.92661129,666.71,666.36,0.30013806]
[1748927898717,0.853,666.72,666.36,0.30013806]
[1748927899617,0.92661665,666.71,666.36,0.30013806]
[1748927899818,0.853,666.72,666.36,0.30013806]
[1748927900820,0.92617803,666.71,666.36,0.30013806]
[1748927901018,0.853,666.72,666.36,0.30013806]
[1748927903219,1.295,666.71,666.36,0.30013806]
[1748927904319,0.92725604,666.7,666.36,0.30013806]
[1748927904515,0.92725604,666.69,666.36,0.30013806]
[1748927904713,0.92725604,666.68,666.36,0.30013806]
[1748927904913,1.295,666.71,666.36,0.30013806]
[1748927905320,0.9272574,666.7,666.36,0.30013806]
[1748927905523,1.295,666.71,666.36,0.30013806]
[1748927905717,1.228,666.69,666.36,0.30013806]
[1748927905922,0.92725322,666.68,666.36,0.30013806]
[1748927906116,1.228,666.69,666.36,0.30013806]
[1748927906423,0.92725569,666.68,666.36,0.30013806]
[1748927906727,1.228,666.69,666.36,0.30013806]
[1748927907821,0.9270013,666.68,666.36,0.30013806]
[1748927908121,1.228,666.69,666.36,0.30013806]
[1748927909414,0.9270013,666.68,666.36,0.30013806]
[1748927909619,1.228,666.69,666.36,0.30013806]
[1748927909818,0.92699878,666.68,666.36,0.30013806]
[1748927910022,1.228,666.69,666.36,0.30013806]
[1748927910723,0.92699944,666.68,666.36,0.30013806]
[1748927911021,1.228,666.69,666.36,0.30013806]
[1748927911420,0.92699746,666.68,666.36,0.30013806]
[1748927911617,1.228,666.69,666.36,0.30013806]
[1748927911921,0.92699746,666.68,666.36,0.30013806]
[1748927912121,1.228,666.69,666.36,0.30013806]
[1748927912523,0.92721536,666.68,666.36,0.30013806]
[1748927912723,0.92721546,666.67,666.36,0.30013806]
[1748927912918,1.228,666.69,666.36,0.30013806]
[1748927913119,0.92721273,666.68,666.36,0.30013806]
[1748927913318,0.92721054,666.67,666.36,0.30013806]
[1748927913518,1.228,666.69,666.36,0.30013806]
[1748927914125,0.92721801,666.68,666.36,0.30013806]
[1748927914323,1.228,666.69,666.36,0.30013806]
[1748927914518,0.92721801,666.68,666.36,0.30013806]
[1748927914724,1.228,666.69,666.36,0.30013806]
[1748927914921,0.92721465,666.68,666.36,0.30013806]
[1748927915124,1.228,666.69,666.36,0.30013806]
[1748927915725,0.92721253,666.68,666.36,0.30013806]
[1748927915927,1.228,666.69,666.36,0.30013806]
[1748927916426,0.92718794,666.68,666.36,0.30013806]
[1748927916728,1.228,666.69,666.36,0.30013806]
[1748927917325,0.92718794,666.68,666.36,0.30013806]
[1748927917522,1.228,666.69,666.36,0.30013806]
[1748927917821,0.92718794,666.67,666.36,0.30013806]
[1748927918222,0.92718794,666.66,666.36,0.30013806]
[1748927919130,1.228,666.69,666.36,0.30013806]
[1748927919331,0.92721036,666.68,666.36,0.30013806]
[1748927919531,0.92721036,666.67,666.36,0.30013806]
[1748927919728,0.92715336,666.66,666.36,0.30013806]
[1748927919927,1.228,666.69,666.36,0.30013806]
[1748927920333,1.83915272,666.68,666.36,0.30013806]
[1748927920633,0.912,666.68,666.36,0.30013806]
[1748927921031,0.92711112,666.67,666.36,0.30013806]
[1748927921333,0.912,666.68,666.36,0.30013806]
[1748927922730,0.92711146,666.67,666.36,0.30013806]
[1748927922936,0.92711146,666.66,666.36,0.30013806]
[1748927923137,0.912,666.68,666.36,0.30013806]
[1748927924243,0.92711146,666.67,666.36,0.30013806]
[1748927924437,0.92711086,666.66,666.36,0.30013806]
[1748927924637,0.912,666.68,666.36,0.30013806]
[1748927924936,0.92602395,666.67,666.36,0.30013806]
[1748927925135,0.912,666.68,666.36,0.30013806]
[1748927926737,0.92602398,666.67,666.36,0.30013806]
[1748927926939,0.912,666.68,666.36,0.30013806]
[1748927927140,1.315,666.66,666.36,0.30013806]
[1748927928944,0.9260714,666.65,666.36,0.30013806]
[1748927929235,1.315,666.66,666.36,0.30013806]
[1748927929437,0.92610211,666.65,666.36,0.30013806]
[1748927929633,1.315,666.66,666.36,0.30013806]
[1748927930145,0.92610375,666.65,666.36,0.30013806]
[1748927930340,1.315,666.66,666.36,0.30013806]
[1748927930735,0.92610443,666.65,666.36,0.30013806]
[1748927930941,1.315,666.66,666.36,0.30013806]
[1748927931139,0.92610443,666.65,666.36,0.30013806]
[1748927931338,0.92610443,666.64,666.36,0.30013806]
[1748927931645,0.92610443,666.63,666.36,0.30013806]
[1748927931842,0.92533712,666.62,666.36,0.30013806]
[1748927932039,2.57,666.66,666.36,0.30013806]
[1748927932543,0.92533712,666.65,666.36,0.30013806]
[1748927932844,0.92533473,666.64,666.36,0.30013806]
[1748927933040,2.57,666.66,666.36,0.30013806]
[1748927933444,0.92533308,666.65,666.36,0.30013806]
[1748927933648,0.92533806,666.64,666.36,0.30013806]
[1748927933943,2.57,666.66,666.36,0.30013806]
[1748927935147,0.9253328,666.65,666.36,0.30013806]
[1748927935351,2.57,666.66,666.36,0.30013806]
[1748927935352,0.9253328,666.64,666.36,0.30013806]
[1748927935555,2.57,666.66,666.36,0.30013806]
[1748927937753,0.92533417,666.65,666.36,0.30013806]
[1748927937949,2.57,666.66,666.36,0.30013806]
[1748927938253,0.9253328,666.65,666.36,0.30013806]
[1748927938450,0.92535411,666.64,666.36,0.30013806]
[1748927938649,0.92535404,666.63,666.36,0.30013806]
[1748927938954,2.57,666.66,666.36,0.30013806]
[1748927939153,0.92535584,666.65,666.36,0.30013806]
[1748927939350,2.57,666.66,666.36,0.30013806]
[1748927940050,0.92535525,666.65,666.36,0.30013806]
[1748927940253,0.92535525,666.64,666.36,0.30013806]
[1748927940554,2.57,666.66,666.36,0.30013806]
[1748927941555,0.92385242,666.65,666.36,0.30013806]
[1748927941753,2.57,666.66,666.36,0.30013806]
[1748927942149,0.92391762,666.65,666.36,0.30013806]
[1748927942350,0.92391898,666.64,666.36,0.30013806]
[1748927942655,2.57,666.66,666.36,0.30013806]
[1748927943054,0.92391762,666.65,666.36,0.30013806]
[1748927943252,2.57,666.66,666.36,0.30013806]
[1748927943451,0.92391762,666.65,666.36,0.30013806]
[1748927943650,0.92391762,666.64,666.36,0.30013806]
[1748927943857,3.767,666.66,666.36,0.30013806]
[1748927945864,0.92391762,666.65,666.36,0.30013806]
[1748927946061,3.767,666.66,666.36,0.30013806]
[1748927946255,0.92391626,666.65,666.36,0.30013806]
[1748927946461,3.767,666.66,666.36,0.30013806]
[1748927946760,0.92391626,666.65,666.36,0.30013806]
[1748927946960,0.92391626,666.64,666.36,0.30013806]
[1748927947163,0.92391626,666.63,666.36,0.30013806]
[1748927947362,3.767,666.66,666.36,0.30013806]
[1748927948060,0.92349318,666.65,666.36,0.30013806]
[1748927948262,3.767,666.66,666.36,0.30013806]
[1748927949555,0.92349786,666.65,666.36,0.30013806]
[1748927949759,0.9234994,666.64,666.36,0.30013806]
[1748927949960,0.9234994,666.63,666.36,0.30013806]
[1748927950359,3.767,666.66,666.36,0.30013806]
[1748927950557,0.92349447,666.65,666.36,0.30013806]
[1748927950759,0.92349447,666.64,666.36,0.30013806]
[1748927950956,0.92349447,666.63,666.36,0.30013806]
[1748927951160,3.767,666.66,666.36,0.30013806]
[1748927951757,0.92351977,666.65,666.36,0.30013806]
[1748927951962,3.767,666.66,666.36,0.30013806]
[1748927952156,1.224,666.64,666.36,0.30013806]
[1748927952558,0.92359055,666.63,666.36,0.30013806]
[1748927952761,0.92360223,666.62,666.36,0.30013806]
[1748927953060,1.224,666.64,666.36,0.30013806]
[1748927954363,0.92364303,666.63,666.36,0.30013806]
[1748927954558,0.92364469,666.62,666.36,0.30013806]
[1748927954758,1.224,666.64,666.36,0.30013806]
[1748927955863,0.92364475,666.63,666.36,0.30013806]
[1748927956060,0.92364475,666.62,666.36,0.30013806]
[1748927956258,1.224,666.64,666.36,0.30013806]
[1748927958964,0.92364704,666.63,666.36,0.30013806]
[1748927959160,0.92364704,666.62,666.36,0.30013806]
[1748927959367,1.224,666.64,666.36,0.30013806]
[1748927959666,0.92364315,666.63,666.36,0.30013806]
[1748927959867,1.224,666.64,666.36,0.30013806]
[1748927962066,0.92269228,666.63,666.36,0.30013806]
[1748927962365,1.224,666.64,666.36,0.30013806]
[1748927962568,0.92269091,666.63,666.36,0.30013806]
[1748927962870,1.224,666.64,666.36,0.30013806]
[1748927964067,0.92256219,666.63,666.36,0.30013806]
[1748927964365,1.224,666.64,666.36,0.30013806]
[1748927965162,0.92256432,666.63,666.36,0.30013806]
[1748927965365,0.92256432,666.62,666.36,0.30013806]
[1748927965565,1.224,666.64,666.36,0.30013806]
[1748927966567,0.9225643,666.63,666.36,0.30013806]
[1748927966766,1.224,666.64,666.36,0.30013806]
[1748927967571,0.92258559,666.63,666.36,0.30013806]
[1748927967771,1.224,666.64,666.36,0.30013806]
[1748927969370,0.92258625,666.63,666.36,0.30013806]
[1748927969567,0.92258625,666.62,666.36,0.30013806]
[1748927969771,0.923033,666.61,666.36,0.30013806]
[1748927970067,1.224,666.64,666.36,0.30013806]
[1748927970873,0.92304081,666.63,666.36,0.30013806]
[1748927971066,0.92303439,666.62,666.36,0.30013806]
[1748927971266,0.92303257,666.61,666.36,0.30013806]
[1748927971573,0.92303257,666.6,666.36,0.30013806]
[1748927971772,1.224,666.64,666.36,0.30013806]
[1748927971965,0.92303257,666.63,666.36,0.30013806]
[1748927972168,0.92303257,666.62,666.36,0.30013806]
[1748927972369,0.92303257,666.61,666.36,0.30013806]
[1748927972568,0.92294748,666.6,666.36,0.30013806]
[1748927972767,1.224,666.64,666.36,0.30013806]
[1748927973874,1.49393868,666.63,666.36,0.30013806]
[1748927974370,1.12079294,666.49,666.36,0.30013806]
[1748927974572,0.92293653,666.48,666.36,0.30013806]
[1748927974770,0.92292602,666.47,666.36,0.30013806]
[1748927974969,0.92292639,666.46,666.36,0.30013806]
[1748927975173,1.12079294,666.48,666.36,0.30013806]
[1748927975769,1.12079294,666.49,666.36,0.30013806]
[1748927975967,0.92292365,666.48,666.36,0.30013806]
[1748927976171,1.12079294,666.49,666.36,0.30013806]
[1748927976567,1.279,666.48,666.36,0.30013806]
[1748927977072,0.9217731,666.47,666.36,0.30013806]
[1748927977272,1.279,666.48,666.36,0.30013806]
[1748927977769,0.92177413,666.47,666.36,0.30013806]
[1748927977972,1.279,666.48,666.36,0.30013806]
[1748927979274,0.45954326,666.47,666.36,0.30013806]
[1748927979475,1.279,666.48,666.36,0.30013806]
[1748927980673,0.92338768,666.47,666.36,0.30013806]
[1748927980872,1.279,666.48,666.36,0.30013806]
[1748927981075,0.92338503,666.47,666.36,0.30013806]
[1748927981274,1.279,666.48,666.36,0.30013806]
[1748927982079,0.9233753,666.47,666.36,0.30013806]
[1748927982272,1.18446113,666.46,666.36,0.30013806]
[1748927982471,0.26108583,666.46,666.36,0.30013806]
[1748927982874,0.92338834,666.45,666.36,0.30013806]
[1748927983076,0.26108583,666.46,666.36,0.30013806]
[1748927983280,0.92342864,666.45,666.36,0.30013806]
[1748927983476,0.45963984,666.44,666.36,0.30013806]
[1748927983676,0.26108583,666.46,666.36,0.30013806]